fUSD/lending_fUSD_20250720
["ID","MTS","AMOUNT","RATE_DAILY","PERIOD"]
[373371858,1752970263106,-818.66,0.00019506,2]
[373371859,1752970263116,-480.0,0.00019506,2]
[373371860,1752970263125,-345.0107852,0.00019506,2]
[373371861,1752970263495,-134.9892148,0.00019506,2]
[373371862,1752970263505,-480.0,0.00019506,2]
[373371863,1752970263520,-480.0,0.00019506,2]
[373371864,1752970263530,-87.68955897,0.00019506,2]
[373371865,1752970263550,-392.31044103,0.00019506,2]
[373371866,1752970263560,-493.07,0.00019506,2]
[373371867,1752970263569,-23.11036445,0.00019506,2]
[373371868,1752970264245,-480.0,0.00019178,2]
[373371869,1752970264255,-435.29306625,0.00019178,2]
[373371870,1752970264265,-456.88963555,0.00019506,2]
[373371871,1752970264275,-712.86,0.00019506,2]
[373371872,1752970264286,-480.0,0.00019506,2]
[373371873,1752970264298,-480.0,0.00019506,2]
[373371874,1752970264307,-480.0,0.00019506,2]
[373371875,1752970264317,-455.75,0.00019506,2]
[373371876,1752970264328,-480.0,0.00019506,2]
[373371877,1752970264337,-411.8072982,0.00019506,2]
[373371879,1752970376377,379.83,0.00013699,2]
[373371880,1752970448124,2494.38,0.00025,120]
[373371881,1752970625840,315.15645857,0.000211,28]
[373371891,1752971317099,3599.099999,0.000151,2]
[373371899,1752971361178,-1083.0,0.000154,2]
[373371900,1752971361197,-15.38716109,0.00015525,2]
[373371915,1752971431822,-284.61283891,0.00015525,2]
[373371916,1752971431833,-250.0,0.0001565,2]
[373371917,1752971431842,-295.10132852,0.000159,2]
[373371918,1752971432102,-787.89867148,0.000159,2]
[373371919,1752971432111,-300.0,0.0001605,2]
[373371920,1752971432121,-511.0,0.00016338,2]
[373371921,1752971432131,-122.33818826,0.00016464,2]
[373371953,1752971437973,-77.11208583,0.00016464,2]
[373371954,1752971437982,-250.0,0.00016564,2]
[373371955,1752971437992,-182.88904043,0.00016737,2]
[373371974,1752971439977,-900.11095957,0.00016737,2]
[373371975,1752971439986,-250.0,0.0001694,2]
[373371976,1752971439995,-300.0,0.0001694,2]
[373371977,1752971440005,-171.49,0.00017325,2]
[373371978,1752971440016,-1200.0,0.0001735,2]
[373371979,1752971440025,-1513.96667965,0.00017351,2]
[373372092,1752971442935,-14979.5395344,0.00017351,2]
[373372093,1752971443046,-2813.61732449,0.00017351,2]
[373372094,1752971443057,-639.29851046,0.00017351,2]
[373372095,1752971443153,-3953.577951,0.00017351,2]
[373372096,1752971443162,-151.0,0.00017382,2]
[373372097,1752971443171,-151.0,0.00017389,2]
[373372098,1752971443181,-151.0,0.00017397,2]
[373372099,1752971443190,-151.0,0.00017415,2]
[373372100,1752971443199,-388.0,0.000175,2]
[373372101,1752971443209,-666.0,0.00017502,2]
[373372102,1752971443218,-160.21,0.00017505,2]
[373372103,1752971443227,-1083.0,0.00017617,2]
[373372104,1752971443237,-1000.0,0.00017717,2]
[373372105,1752971443246,-200.0,0.00017798,2]
[373372106,1752971443255,-250.0,0.00017889,2]
[373372107,1752971443265,-160.77,0.0001801,2]
[373372108,1752971443275,-299.82,0.0001804,2]
[373372109,1752971443284,-216.76,0.00018145,2]
[373372111,1752971443293,-357.5,0.00018329,2]
[373372113,1752971443303,-1000.0,0.00018343,2]
[373372114,1752971443312,-600.0,0.00018343,2]
[373372115,1752971443322,-1000.0,0.00018343,2]
[373372116,1752971443331,-208.08503929,0.00018343,2]
[373372117,1752971443340,-1000.0,0.00018343,2]
[373372118,1752971443350,-1000.0,0.00018343,2]
[373372119,1752971443359,-151.0,0.00018343,2]
[373372120,1752971443368,-1000.0,0.00018343,2]
[373372121,1752971443377,-151.0,0.00018343,2]
[373372122,1752971443387,-151.0,0.00018343,2]
[373372123,1752971443397,-1000.0,0.00018343,2]
[373372124,1752971443406,-151.0,0.00018343,2]
[373372125,1752971443416,-1000.0,0.00018343,2]
[373372126,1752971443425,-1000.0,0.00018343,2]
[373372127,1752971443435,-207.4,0.00018343,2]
[373372128,1752971443445,-1000.0,0.00018343,2]
[373372129,1752971443454,-1000.0,0.00018343,2]
[373372130,1752971443464,-1000.0,0.00018343,2]
[373372139,1752971443794,-1000.0,0.00018343,2]
[373372140,1752971443803,-1000.0,0.00018343,2]
[373372141,1752971443812,-1000.0,0.00018343,2]
[373372142,1752971443822,-1000.0,0.00018343,2]
[373372143,1752971443831,-1000.0,0.00018343,2]
[373372144,1752971443842,-1000.0,0.00018343,2]
[373372145,1752971443851,-1000.0,0.00018343,2]
[373372146,1752971443861,-710.75797125,0.00018343,2]
[373372147,1752971443876,-814.69,0.00018358,2]
[373372148,1752971443886,-464.8,0.00018358,2]
[373372149,1752971443895,-172.26,0.00018407,2]
[373372150,1752971443909,-1083.0,0.00018545,2]
[373372151,1752971443918,-500.0,0.00018547,2]
[373372152,1752971443927,-1525.62,0.0001863,2]
[373372153,1752971443936,-166.03,0.00018699,2]
[373372154,1752971443946,-161.68,0.00018699,2]
[373372155,1752971443955,-150.0,0.00018779,2]
[373372156,1752971443964,-381.0,0.0001878,2]
[373372157,1752971443973,-208.0,0.000188,2]
[373372158,1752971443983,-161.68,0.00018886,2]
[373372159,1752971443993,-358.35903846,0.00018891,2]
[373372160,1752971444039,-241.64096154,0.00018891,2]
[373372161,1752971444049,-200.0,0.000189,6]
[373372162,1752971444059,-357.5,0.00019016,2]
[373372163,1752971444069,-1680.0,0.00019037,2]
[373372164,1752971444078,-1000.0,0.00019078,2]
[373372165,1752971444088,-2500.0,0.00019078,2]
[373372166,1752971444100,-472.99859544,0.00019078,2]
[373372167,1752971444111,-1301.18406247,0.00019078,2]
[373372168,1752971444136,-3225.81734209,0.00019078,2]
[373372169,1752971444148,-208.0,0.0001908,2]
[373372170,1752971444157,-779.40340098,0.00019105,2]
[373372171,1752971444166,-1217.53086689,0.00019157,2]
[373372173,1752971445850,-862.0,0.00019003,2]
[373372174,1752971445860,-454.66444692,0.00019157,2]
[373372175,1752971445869,-196.21,0.00019168,2]
[373372176,1752971445878,-480.0,0.00019178,2]
[373372177,1752971445887,-480.0,0.00019178,2]
[373372178,1752971445897,-460.0,0.00019178,2]
[373372179,1752971445906,-460.0,0.00019178,2]
[373372180,1752971445915,-460.0,0.00019178,2]
[373372181,1752971445924,-460.0,0.00019178,2]
[373372182,1752971445933,-460.0,0.00019178,2]
[373372183,1752971445942,-460.0,0.00019178,2]
[373372184,1752971445951,-460.0,0.00019178,2]
[373372185,1752971445960,-460.0,0.00019178,2]
[373372186,1752971445969,-460.0,0.00019178,2]
[373372187,1752971445978,-460.0,0.00019178,2]
[373372188,1752971445988,-460.0,0.00019178,2]
[373372189,1752971445997,-460.0,0.00019178,2]
[373372190,1752971446007,-515.1,0.00019178,2]
[373372191,1752971446019,-480.0,0.00019178,2]
[373372192,1752971446028,-581.39,0.00019178,2]
[373372193,1752971446037,-460.0,0.00019178,2]
[373372194,1752971446046,-460.0,0.00019178,2]
[373372195,1752971446055,-480.0,0.00019178,2]
[373372196,1752971446066,-480.0,0.00019178,2]
[373372197,1752971446076,-505.0,0.00019178,2]
[373372198,1752971446086,-667.63,0.00019178,2]
[373372199,1752971446095,-480.0,0.00019178,2]
[373372200,1752971446106,-547.93454042,0.00019178,2]
[373372201,1752971446115,-480.0,0.00019178,2]
[373372202,1752971446125,-588.23,0.00019178,2]
[373372203,1752971446134,-575.58,0.00019178,2]
[373372204,1752971446143,-480.0,0.00019178,2]
[373372205,1752971446153,-480.0,0.00019178,2]
[373372206,1752971446162,-460.0,0.00019178,2]
[373372207,1752971446171,-480.0,0.00019178,2]
[373372208,1752971446181,-480.0,0.00019178,2]
[373372209,1752971446191,-566.28,0.00019178,2]
[373372210,1752971446200,-480.0,0.00019178,2]
[373372211,1752971446209,-480.0,0.00019178,2]
[373372212,1752971446219,-460.0,0.00019178,2]
[373372213,1752971446229,-480.0,0.00019178,2]
[373372214,1752971446238,-871.58,0.00019178,2]
[373372215,1752971446250,-480.0,0.00019178,2]
[373372216,1752971446261,-480.0,0.00019178,2]
[373372217,1752971446271,-142.28444901,0.00019178,2]
[373372220,1752971446297,-337.71555099,0.00019178,2]
[373372221,1752971446307,-480.0,0.00019178,2]
[373372223,1752971446317,-185.52,0.00019178,2]
[373372226,1752971446326,-480.0,0.00019178,2]
[373372227,1752971446336,-480.0,0.00019178,2]
[373372228,1752971446345,-480.0,0.00019178,2]
[373372229,1752971446355,-753.86679502,0.00019178,2]
[373372230,1752971446472,-61.97320498,0.00019178,2]
[373372231,1752971446481,-266.39332542,0.00019178,2]
[373372232,1752971446491,-480.0,0.00019178,2]
[373372233,1752971446500,-527.48,0.00019178,2]
[373372234,1752971446510,-480.0,0.00019178,2]
[373372235,1752971446519,-480.0,0.00019178,2]
[373372236,1752971446528,-480.0,0.00019178,2]
[373372237,1752971446538,-489.05,0.00019178,2]
[373372238,1752971446547,-480.0,0.00019178,2]
[373372239,1752971446556,-480.0,0.00019178,2]
[373372240,1752971446566,-480.0,0.00019178,2]
[373372241,1752971446575,-688.16,0.00019178,2]
[373372242,1752971446584,-480.0,0.00019178,2]
[373372243,1752971446593,-1090.91,0.00019178,2]
[373372244,1752971446603,-480.0,0.00019178,2]
[373372245,1752971446612,-682.21,0.00019178,2]
[373372246,1752971446621,-480.0,0.00019178,2]
[373372247,1752971446631,-594.05,0.00019178,2]
[373372248,1752971446640,-452.96,0.00019178,2]
[373372249,1752971446649,-480.0,0.00019178,2]
[373372250,1752971446659,-480.0,0.00019178,2]
[373372251,1752971446668,-480.0,0.00019178,2]
[373372252,1752971446678,-480.0,0.00019178,2]
[373372253,1752971446689,-480.0,0.00019178,2]
[373372254,1752971446698,-480.0,0.00019178,2]
[373372255,1752971446707,-480.0,0.00019178,2]
[373372256,1752971446717,-480.0,0.00019178,2]
[373372257,1752971446727,-480.0,0.00019178,2]
[373372258,1752971446738,-480.0,0.00019178,2]
[373372259,1752971446747,-480.0,0.00019178,2]
[373372260,1752971446757,-480.0,0.00019178,2]
[373372261,1752971446766,-480.0,0.00019178,2]
[373372262,1752971446775,-480.0,0.00019178,2]
[373372263,1752971446784,-480.0,0.00019178,2]
[373372264,1752971446793,-558.24,0.00019178,2]
[373372265,1752971446803,-480.0,0.00019178,2]
[373372266,1752971446813,-480.0,0.00019178,2]
[373372267,1752971446823,-480.0,0.00019178,2]
[373372268,1752971446833,-480.0,0.00019178,2]
[373372269,1752971446842,-480.0,0.00019178,2]
[373372270,1752971446851,-500.0,0.00019178,2]
[373372271,1752971446860,-165.15,0.00019178,2]
[373372272,1752971446870,-480.0,0.00019178,2]
[373372273,1752971446881,-480.0,0.00019178,2]
[373372274,1752971446890,-480.0,0.00019178,2]
[373372275,1752971446899,-480.0,0.00019178,2]
[373372276,1752971446909,-480.0,0.00019178,2]
[373372277,1752971446918,-563.53,0.00019178,2]
[373372278,1752971446927,-449.48,0.00019178,2]
[373372279,1752971446936,-480.0,0.00019178,2]
[373372280,1752971446945,-480.0,0.00019178,2]
[373372281,1752971446954,-480.0,0.00019178,2]
[373372282,1752971446963,-480.0,0.00019178,2]
[373372283,1752971446973,-513.47,0.00019178,2]
[373372284,1752971446982,-437.215763,0.00019178,2]
[373372285,1752971446991,-480.0,0.00019178,2]
[373372286,1752971447000,-373.686195,0.00019178,2]
[373372287,1752971447010,-527.28,0.00019178,2]
[373372288,1752971447026,-480.0,0.00019178,2]
[373372289,1752971447036,-480.0,0.00019178,2]
[373372290,1752971447045,-480.0,0.00019178,2]
[373372291,1752971447055,-480.0,0.00019178,2]
[373372292,1752971447064,-480.0,0.00019178,2]
[373372293,1752971447074,-480.0,0.00019178,2]
[373372294,1752971447083,-480.0,0.00019178,2]
[373372295,1752971447093,-480.0,0.00019178,2]
[373372296,1752971447102,-425.108892,0.00019178,2]
[373372297,1752971447111,-480.0,0.00019178,2]
[373372298,1752971447120,-480.0,0.00019178,2]
[373372299,1752971447129,-480.0,0.00019178,2]
[373372300,1752971447138,-304.6526196,0.00019178,2]
[373372301,1752971447153,-175.3473804,0.00019178,2]
[373372302,1752971447163,-620.5680055,0.00019178,2]
[373372303,1752971447257,-173.7219945,0.00019178,2]
[373372304,1752971447267,-480.0,0.00019178,2]
[373372305,1752971447328,-480.0,0.00019178,2]
[373372306,1752971447337,-480.0,0.00019178,2]
[373372307,1752971447347,-480.0,0.00019178,2]
[373372308,1752971447356,-585.97,0.00019178,2]
[373372309,1752971447365,-279.96739821,0.00019178,2]
[373372311,1752971503706,360.83,0.00013699,2]
[373372336,1752972632083,-511.0,0.00016249,2]
[373372338,1752972632092,-366.0,0.000175,2]
[373372339,1752972632102,-245.4485867,0.0001763,2]
[373372340,1752972632111,-155.15778993,0.0001763,2]
[373372341,1752972632119,-150.0,0.0001763,2]
[373372342,1752972632128,-91.19362337,0.0001763,2]
[373372343,1752972632140,-63.30789308,0.0001763,2]
[373372344,1752972632149,-172.26,0.00017915,2]
[373372345,1752972632158,-370.900031,0.00018042,2]
[373372346,1752972632167,-140.35371411,0.00018057,2]
[373372347,1752972632189,-859.64628589,0.00018057,2]
[373372348,1752972632198,-161.35,0.00018133,2]
[373372349,1752972632208,-150.0,0.00018253,2]
[373372350,1752972632217,-293.76,0.00018329,2]
[373372351,1752972632226,-500.0,0.00018339,2]
[373372352,1752972632235,-166.03,0.00018382,2]
[373372353,1752972632245,-400.18,0.00018439,2]
[373372354,1752972632254,-150.0,0.00018561,2]
[373372355,1752972632264,-207.4,0.00018609,2]
[373372356,1752972632273,-400.0,0.000187,6]
[373372357,1752972632282,-150.0,0.00018755,2]
[373372358,1752972632291,-1200.0,0.00018779,2]
[373372359,1752972632301,-359.0,0.0001878,2]
[373372360,1752972632310,-800.0,0.000188,6]
[373372361,1752972632319,-150.0,0.00018899,2]
[373372362,1752972632328,-1300.0,0.000189,6]
[373372363,1752972632337,-187.71144715,0.000189,2]
[373372364,1752972632346,-170.65504794,0.000189,2]
[373372365,1752972632355,-164.54422595,0.00018916,2]
[373372366,1752972632365,-779.40340098,0.00018943,2]
[373372367,1752972632375,-150.0,0.00018945,2]
[373372368,1752972632383,-500.0,0.00018973,2]
[373372369,1752972632393,-500.0,0.00018973,2]
[373372370,1752972632402,-500.0,0.00018973,2]
[373372371,1752972632411,-600.0,0.00018988,2]
[373372372,1752972632422,-305.7,0.0001899,3]
[373372373,1752972632431,-150.0,0.00018998,2]
[373372374,1752972632441,-1248.261,0.00018999,2]
[373372375,1752972632450,-152551.93760271,0.00019,2]
[373372379,1752972632701,-212.29821116,0.00018999,2]
[373372380,1752972632711,-216.48464524,0.00018999,2]
[373372381,1752972632721,-2157.43092342,0.00019,2]
[373372382,1752972632732,-3325.74439186,0.00019,2]
[373372383,1752972632827,-624.64011863,0.00019,2]
[373372391,1752972638002,-655.6964493,0.00019,2]
[373372392,1752972638155,-303.11395662,0.00019,2]
[373372491,1752972640196,-153.42,0.00018275,2]
[373372493,1752972640205,-195.29772493,0.00018999,2]
[373372495,1752972640216,-977.30296064,0.00019,2]
[373372506,1752972640315,-500.0,0.00018999,2]
[373372507,1752972640325,-1946.48557272,0.00019,2]
[373372798,1752972643240,-368.45911074,0.00018999,2]
[373372800,1752972643249,-1899.04093165,0.00019,2]
[373372825,1752972643473,-22.41970114,0.00019,2]
[373373074,1752972646167,-39201.44541864,0.00019,2]
[373373075,1752972646223,-22693.17768995,0.00019,2]
[373373076,1752972646234,-122113.02766818,0.00019,2]
[373373077,1752972646335,-350.03723001,0.00019,2]
[373373078,1752972646485,-616.219503,0.00019,2]
[373373080,1752972724242,342.78,0.00013699,2]
[373373082,1752973110218,-260.27031509,0.00015249,2]
[373373083,1752973113474,-165.96569061,0.00015249,2]
[373373084,1752973116115,-84.7639943,0.00015249,2]
[373373085,1752973139997,-198.3360057,0.00015249,2]
[373373089,1752973469620,525.0,0.00014249,2]
[373373090,1752973501060,2925.46,0.0002501,120]
[373373091,1752973531884,846.72,0.000208,60]
[373373093,1752973832652,-525.0,0.00016299,2]
[373373094,1752973832661,-1083.0,0.00016681,2]
[373373095,1752973832670,-150.0,0.00016965,2]
[373373096,1752973832679,-150.0,0.00017148,2]
[373373097,1752973832689,-150.0,0.00017219,2]
[373373098,1752973832698,-150.0,0.0001731,2]
[373373099,1752973832710,-287.76752307,0.00017328,2]
[373373100,1752973832719,-3042.44,0.00017413,2]
[373373101,1752973832728,-171.49,0.00017464,2]
[373373102,1752973832737,-666.0,0.00017479,2]
[373373103,1752973832747,-150.0,0.00017484,2]
[373373104,1752973832755,-292.86848519,0.000175,2]
[373373105,1752973832767,-106.13151481,0.000175,2]
[373373106,1752973832776,-395.8,0.00017536,2]
[373373107,1752973832785,-821.93007733,0.00017559,2]
[373373108,1752973832798,-261.06992267,0.00017559,2]
[373373109,1752973832808,-150.0,0.0001759,2]
[373373110,1752973832817,-1000.0,0.00017603,2]
[373373111,1752973832825,-150.0,0.00017716,2]
[373373112,1752973832835,-1200.0,0.00017749,2]
[373373113,1752973832844,-2703.55,0.0001775,2]
[373373114,1752973832853,-150.0,0.00017779,2]
[373373115,1752973832863,-189.79,0.0001792,2]
[373373117,1752973832872,-300.0,0.00017963,2]
[373373119,1752973832881,-500.0,0.00017964,2]
[373373121,1752973832891,-291.06912475,0.00017971,2]
[373373133,1752973833010,-1919.84186724,0.00017971,2]
[373373136,1752973833029,-720.38999912,0.00017971,2]
[373373140,1752973833061,-20968.69900889,0.00017971,2]
[373373142,1752973833071,-167.21,0.00018003,2]
[373373144,1752973833081,-493.11,0.00018024,2]
[373373146,1752973833091,-150.0,0.00018039,2]
[373373148,1752973833100,-209.92,0.00018076,2]
[373373150,1752973833109,-150.0,0.0001809,2]
[373373152,1752973833118,-333.78,0.00018329,2]
[373373154,1752973833127,-250.0,0.00018349,2]
[373373156,1752973833137,-1083.0,0.00018483,2]
[373373158,1752973833146,-600.0,0.00018488,2]
[373373160,1752973833155,-207.4,0.00018488,2]
[373373161,1752973833164,-150.0,0.00018526,2]
[373373163,1752973833174,-300.0,0.000186,6]
[373373165,1752973833183,-150.0,0.00018692,2]
[373373167,1752973833192,-600.0,0.000187,6]
[373373169,1752973833201,-150.0,0.00018717,2]
[373373171,1752973833211,-452.0,0.00018743,2]
[373373173,1752973833221,-1166.0,0.00018744,2]
[373373175,1752973833230,-889.0,0.00018744,2]
[373373177,1752973833240,-6048.0,0.00018744,2]
[373373179,1752973833249,-21361.0,0.00018744,2]
[373373181,1752973833258,-4125.0,0.00018744,2]
[373373183,1752973833267,-500.0,0.00018774,2]
[373373185,1752973833277,-391.0,0.0001878,2]
[373373187,1752973833287,-151.33,0.00018799,2]
[373373189,1752973833296,-416.39,0.000188,2]
[373373191,1752973833305,-900.0,0.000188,6]
[373373193,1752973833315,-1043.96703,0.0001881,2]
[373373195,1752973833324,-165.37,0.00018813,2]
[373373197,1752973833333,-1027.44630032,0.000189,6]
[373373219,1752973838575,-862.0,0.00018744,2]
[373373220,1752973838585,-172.55369968,0.000189,6]
[373373221,1752973838594,-170.65504794,0.000189,2]
[373373222,1752973838604,-49.56820238,0.000189,2]
[373373261,1752973840430,-241.56700784,0.000189,2]
[373373262,1752973840440,-213.71021066,0.000189,2]
[373373263,1752973840449,-164.54422594,0.000189,2]
[373373264,1752973840458,-274.30349247,0.000189,2]
[373373265,1752973840468,-2088.00063924,0.00018973,2]
[373373266,1752973840477,-500.0,0.00018973,2]
[373373267,1752973840486,-500.0,0.00018973,2]
[373373268,1752973840495,-500.0,0.00018973,2]
[373373269,1752973840504,-500.0,0.00018973,2]
[373373270,1752973840514,-437.11514365,0.00018973,2]
[373373271,1752973840523,-500.0,0.00018973,2]
[373373272,1752973840532,-500.0,0.00018973,2]
[373373273,1752973840541,-209.93587572,0.00018999,2]
[373373274,1752973840550,-448.8400453,0.00018999,2]
[373373275,1752973840559,-28741.1455769,0.00018999,2]
[373373276,1752973840813,-620289.322351,0.00018999,2]
[373373277,1752973840822,-20776.23892714,0.00018999,2]
[373373278,1752973840831,-156101.12893057,0.00019,2]
[373373279,1752973840841,-56257.08968036,0.00019,2]
[373373280,1752973840850,-93958.56821332,0.00019,2]
[373373281,1752973840875,-8343.83875195,0.00019,2]
[373373282,1752973840887,-5333.84274432,0.00019,2]
[373373283,1752973840900,-590.35,0.00019,2]
[373373284,1752973840911,-774.13102959,0.00019,2]
[373373292,1752973843594,-1660.12043328,0.00019,2]
[373373297,1752973846332,-1809.87187363,0.00019,2]
[373373298,1752973846444,-1179.2283094,0.00019,2]
[373373335,1752974075536,325.64,0.00013699,2]
[373373337,1752974233021,315.15645857,0.000211,28]
[373373338,1752974463362,492.0,0.00018223,120]
[373373339,1752974548951,524.0,0.00014299,2]
[373373348,1752974790886,150.0,0.00015,20]
[373373352,1752974903558,515.0,0.00025,120]
[373373354,1752974917160,2830.87140125,0.000151,2]
[373373358,1752974957154,-1083.0,0.00015249,2]
[373373359,1752974957174,-760.07974045,0.00015249,2]
[373373379,1752975031574,-39.5243474,0.00015249,2]
[373373380,1752975031583,-1083.0,0.0001598,2]
[373373381,1752975031592,-150.0,0.00016452,2]
[373373382,1752975031601,-2094.23980185,0.00016476,2]
[373373383,1752975031610,-524.0,0.00016564,2]
[373373384,1752975031619,-194.41,0.00016712,2]
[373373385,1752975031628,-1083.0,0.00016821,2]
[373373386,1752975031638,-150.0,0.00016959,2]
[373373387,1752975031647,-1200.0,0.00016999,2]
[373373388,1752975031657,-67934.12579745,0.00017,2]
[373373389,1752975031668,-1759.3196404,0.00017,2]
[373373390,1752975031699,-778.41667818,0.00017,2]
[373373391,1752975031759,-5776.17730004,0.00017,2]
[373373392,1752975031770,-54163.3993457,0.00017,2]
[373373407,1752975037656,-1796.49362053,0.00017,2]
[373373408,1752975037669,-26599.76609006,0.00017,2]
[373373409,1752975037680,-682.91614838,0.00017,2]
[373373410,1752975037689,-500.0,0.00017,2]
[373373411,1752975037698,-500.0,0.00017,2]
[373373412,1752975037707,-150.0,0.00017023,2]
[373373413,1752975037716,-150.0,0.00017305,2]
[373373414,1752975037726,-500.0,0.00017397,2]
[373373415,1752975037735,-666.0,0.00017454,2]
[373373416,1752975037744,-150.0,0.00017458,2]
[373373417,1752975037754,-421.0,0.000175,2]
[373373418,1752975037763,-503.02416385,0.00017548,2]
[373373419,1752975037772,-491.62988529,0.00017548,2]
[373373420,1752975037793,-15.650277,0.00017548,2]
[373373421,1752975037803,-500.0,0.00017644,2]
[373373422,1752975037812,-1083.0,0.00017707,2]
[373373423,1752975037821,-197.9,0.00017811,2]
[373373424,1752975037830,-1000.0,0.00017833,2]
[373373425,1752975037839,-315.0,0.00017836,2]
[373373426,1752975037848,-206.40256879,0.000179,2]
[373373427,1752975037857,-150.0,0.00017968,2]
[373373428,1752975037867,-2146.99614982,0.00017972,2]
[373373429,1752975037876,-150.0,0.00018126,2]
[373373430,1752975037885,-206.40256869,0.00018131,2]
[373373431,1752975037894,-1308.8879803,0.00018169,2]
[373373432,1752975037903,-270.22708852,0.0001817,2]
[373373433,1752975037912,-151.0,0.0001817,2]
[373373434,1752975037922,-485.45142972,0.0001817,2]
[373373435,1752975037931,-151.0,0.0001817,2]
[373373436,1752975037939,-162.2859647,0.0001817,2]
[373373437,1752975037948,-680.39193202,0.00018181,2]
[373373553,1752975040278,-510.69976308,0.00018181,2]
[373373554,1752975040569,-281.89406906,0.00018181,2]
[373373555,1752975040581,-1692.8875362,0.00018181,2]
[373373556,1752975040593,-2847.52669964,0.00018181,2]
[373373557,1752975040602,-150.0,0.00018219,2]
[373373558,1752975040613,-169.2,0.00018223,2]
[373373559,1752975040623,-189.79,0.00018223,2]
[373373560,1752975040632,-158.86,0.00018246,2]
[373373561,1752975040642,-267.02,0.00018329,2]
[373373562,1752975040651,-150.0,0.00018333,2]
[373373563,1752975040660,-158.86,0.00018337,2]
[373373565,1752975040670,-206.40256869,0.00018362,2]
[373373567,1752975040679,-150.0,0.00018387,2]
[373373569,1752975040688,-543.98451513,0.00018411,2]
[373373571,1752975040698,-814.69,0.0001842,2]
[373373573,1752975040707,-464.8,0.0001842,2]
[373373575,1752975040719,-464.91,0.0001842,2]
[373373577,1752975040728,-158.86,0.00018428,2]
[373373579,1752975040737,-150.0,0.00018478,2]
[373373581,1752975040746,-600.0,0.00018488,2]
[373373583,1752975040756,-207.4,0.00018488,2]
[373373585,1752975040766,-150.0,0.00018495,2]
[373373587,1752975040775,-150.0,0.00018495,2]
[373373589,1752975040786,-150.0,0.00018495,2]
[373373591,1752975040795,-150.0,0.00018495,2]
[373373593,1752975040805,-458.36,0.00018495,2]
[373373595,1752975040814,-150.96,0.00018495,2]
[373373597,1752975040823,-253.46928452,0.00018495,2]
[373373599,1752975040836,-471.55071548,0.00018495,2]
[373373603,1752975040846,-1083.0,0.00018592,2]
[373373605,1752975040855,-206.40256869,0.00018592,2]
[373373607,1752975040865,-1680.0,0.00018659,2]
[373373609,1752975040874,-425.50961179,0.00018692,2]
[373373611,1752975040883,-412.0,0.0001878,2]
[373373613,1752975040893,-120.59692157,0.00018781,2]
[373373616,1752975040913,-379.40307843,0.00018781,2]
[373373618,1752975040923,-1000.0,0.00018781,2]
[373373620,1752975040932,-274.709468,0.00018794,2]
[373373622,1752975040942,-1000.0,0.000188,2]
[373373624,1752975040951,-150.0,0.00018809,2]
[373373626,1752975040963,-869.97253,0.0001881,2]
[373373628,1752975040972,-206.40256869,0.00018823,2]
[373373630,1752975040981,-150.0,0.00018884,2]
[373373632,1752975040990,-816.01025203,0.00018888,2]
[373373634,1752975041000,-200.0,0.00018893,2]